bitfinex/quotes_ETHUSD_20240925
["timestamp","ask_amount","ask_price","bid_price","bid_amount"]
[1727224598472,0.8064,2652.9,2652.8,0.08244613]
[1727224598876,0.8064,2652.9,2652.7,3.76972]
[1727224599177,0.8064,2652.9,2652.8,0.08244613]
[1727224599341,0.8064,2652.9,2652.7,3.76972]
[1727224599667,0.8064,2652.9,2652.8,0.08244613]
[1727224600060,0.8064,2652.9,2652.7,3.76972]
[1727224600296,0.8064,2652.9,2652.8,0.08244613]
[1727224600442,7.95,2653.0,2652.9,3.76945]
[1727224600642,7.95,2653.0,2652.9,4.88846708]
[1727224600841,7.95,2653.0,2652.9,4.97080812]
[1727224601078,7.95,2653.0,2652.9,7.97080812]
[1727224601378,7.95,2653.0,2652.9,8.79840812]
[1727224601578,7.95,2653.0,2652.9,10.05520893]
[1727224602365,7.95,2653.0,2652.9,8.93619185]
[1727224622020,7.95,2653.0,2652.9,9.57846897]
[1727224622230,7.95,2653.0,2652.9,9.57847418]
[1727224622581,7.95,2653.0,2652.9,9.57845788]
[1727224622873,7.95,2653.0,2652.9,8.93619185]
[1727224623194,7.95,2653.0,2652.9,9.57848265]
[1727224623419,7.95,2653.0,2652.9,9.57847166]
[1727224623578,7.95,2653.0,2652.9,8.93619185]
[1727224624421,7.95,2653.0,2652.9,10.05474459]
[1727224626355,7.95,2653.0,2652.9,8.93619185]
[1727224627214,7.95,2653.0,2652.9,10.54190423]
[1727224627435,7.95,2653.0,2652.9,12.27940464]
[1727224628233,7.95,2653.0,2652.9,13.56393185]
[1727224628400,7.95,2653.0,2652.9,12.27940464]
[1727224628820,7.95,2653.0,2652.9,12.37643144]
[1727224629033,7.95,2653.0,2652.9,12.27656294]
[1727224629259,7.95,2653.0,2652.9,10.54190423]
[1727224629935,7.95,2653.0,2652.9,9.57850882]
[1727224630814,7.95,2653.0,2652.9,8.93619185]
[1727224631020,7.95,2653.0,2652.9,10.54032443]
[1727224631414,7.95,2653.0,2652.9,11.87998082]
[1727224631619,7.95,2653.0,2652.9,11.09032443]
[1727224631843,7.95,2653.0,2652.9,12.27498314]
[1727224632258,7.95,2653.0,2652.9,13.55792304]
[1727224632546,7.95,2653.0,2652.9,11.87981927]
[1727224632856,7.95,2653.0,2652.9,11.09032443]
[1727224633013,7.95,2653.0,2652.9,12.27498314]
[1727224633230,7.95,2653.0,2652.9,13.55794578]
[1727224633415,7.95,2653.0,2652.9,12.27498314]
[1727224634451,7.95,2653.0,2652.9,13.55762072]
[1727224634660,7.95,2653.0,2652.9,12.27498314]
[1727224635133,7.95,2653.0,2652.9,13.55762072]
[1727224635339,7.95,2653.0,2652.9,12.27498314]
[1727224635565,7.95,2653.0,2652.9,12.27391241]
[1727224636466,7.95,2653.0,2652.9,13.55654999]
[1727224636691,7.95,2653.0,2652.9,12.27391241]
[1727224636869,7.95,2653.0,2652.9,13.65177441]
[1727224637187,7.95,2653.0,2652.9,12.36913683]
[1727224637962,7.95,2653.0,2652.9,12.27281087]
[1727224638654,7.95,2653.0,2652.9,12.37189128]
[1727224638856,7.95,2653.0,2652.9,11.8782731]
[1727224639525,7.95,2653.0,2652.9,11.0892537]
[1727224639859,7.95,2653.0,2652.9,12.27271948]
[1727224640662,7.95,2653.0,2652.9,11.08967103]
[1727224641179,7.95,2653.0,2652.9,11.87866966]
[1727224642488,7.95,2653.0,2652.9,12.27313681]
[1727224642640,7.95,2653.0,2652.9,11.87901416]
[1727224643365,7.95,2653.0,2652.9,11.32901416]
[1727224645175,7.95,2653.0,2652.9,11.33061179]
[1727224646049,7.95,2653.0,2652.9,10.54126866]
[1727224646250,7.95,2653.0,2652.9,11.33061179]
[1727224648042,7.95,2653.0,2652.9,11.72473444]
[1727224648550,7.95,2653.0,2652.9,12.84290571]
[1727224649489,7.95,2653.0,2652.9,11.2378289]
[1727224649691,7.95,2653.0,2652.9,11.66231309]
[1727224650001,7.95,2653.0,2652.9,12.84577887]
[1727224650702,7.95,2653.0,2652.9,13.24564697]
[1727224650925,7.95,2653.0,2652.9,13.79564697]
[1727224651065,7.95,2653.0,2652.9,13.7929995]
[1727224651266,7.95,2653.0,2652.9,15.47397447]
[1727224651492,7.95,2653.0,2652.9,14.18825388]
[1727224654310,7.95,2653.0,2652.9,14.18808674]
[1727224654604,6.76992187,2653.0,2652.9,14.18808674]
[1727224655885,6.76992187,2653.0,2652.9,15.47380733]
[1727224656102,6.76992187,2653.0,2652.9,14.18808674]
[1727224656575,6.76992187,2653.0,2652.9,13.49840746]
[1727224656774,6.76992187,2653.0,2652.9,12.21268687]
[1727224657170,6.76992187,2653.0,2652.9,13.79285491]
[1727224657405,6.76992187,2653.0,2652.9,13.49840746]
[1727224657706,6.76992187,2653.0,2652.9,12.21268687]
[1727224658003,6.76992187,2653.0,2652.9,14.18808674]
[1727224658585,6.76992187,2653.0,2652.9,12.21268687]
[1727224658784,6.76992187,2653.0,2652.9,10.60436312]
[1727224658983,6.76992187,2653.0,2652.9,12.21192367]
[1727224659605,0.0323238,2653.7,2653.6,3.76846]
[1727224659775,0.0323238,2653.7,2653.6,9.43949128]
[1727224659975,0.0323238,2653.7,2653.6,10.32862911]
[1727224660389,0.0323238,2653.7,2653.6,11.63203569]
[1727224661214,0.0323238,2653.7,2653.6,12.42211681]
[1727224662994,0.0323238,2653.7,2653.6,12.42211681]
[1727224664677,0.0323238,2653.7,2653.6,11.63203569]
[1727224665817,0.0323238,2653.7,2653.6,12.42211681]
[1727224666816,0.0323238,2653.7,2653.6,11.63203569]
[1727224668315,0.0323238,2653.7,2653.6,11.62968692]
[1727224668620,0.7958238,2653.7,2653.6,3.84924064]
[1727224670114,0.7958238,2653.7,2653.6,6.84924064]
[1727224674728,0.7958238,2653.7,2653.6,9.27081849]
[1727224675311,0.7958238,2653.7,2653.6,9.91333784]
[1727224675608,0.7958238,2653.7,2653.6,11.36053774]
[1727224675922,0.0323238,2653.7,2653.6,11.36053774]
[1727224676112,0.0323238,2653.7,2653.6,10.71801839]
[1727224676720,0.0323238,2653.7,2653.6,11.36061663]
[1727224676926,0.0323238,2653.7,2653.6,11.36061697]
[1727224677438,0.0323238,2653.7,2653.6,8.93909967]
[1727224677930,0.78741775,2654.2,2654.1,3.76775]
[1727224677931,0.77232355,2654.2,2654.1,3.76775]
[1727224678131,2.4309501,2654.2,2654.1,3.76775]
[1727224678424,1.6200321,2654.2,2654.1,3.84783119]
[1727224680819,1.8613321,2654.2,2654.1,3.84783119]
[1727224681027,0.2413,2654.2,2654.1,4.85155909]
[1727224681739,0.0382857,2654.5,2654.1,4.85155909]
[1727224681740,0.2413,2654.4,2654.3,3.76745]
[1727224682035,0.0382857,2654.5,2654.4,3.76732]
[1727224682256,0.0382857,2654.5,2654.4,8.24096239]
[1727224682539,0.0382857,2654.5,2654.4,9.36268854]
[1727224682708,0.0382857,2654.5,2654.4,9.36238781]
[1727224682910,0.0382857,2654.5,2654.4,8.71788313]
[1727224684041,0.0382857,2654.5,2654.4,9.36215196]
[1727224684340,0.0382857,2654.5,2654.4,7.60072229]
[1727224684534,0.0382857,2654.5,2654.4,7.67605362]
[1727224684955,0.0382857,2654.5,2654.4,7.60072229]
[1727224685505,0.0382857,2654.5,2654.4,7.67605831]
[1727224687723,0.0382857,2654.5,2654.4,8.47735831]
[1727224688052,0.0382857,2654.5,2654.4,9.0453136]
[1727224688255,0.0382857,2654.5,2654.4,9.04530054]
[1727224688427,0.0382857,2654.5,2654.4,10.00976867]
[1727224688948,0.0382857,2654.5,2654.4,11.34984979]
[1727224689146,0.0382857,2654.5,2654.4,13.03096196]
[1727224689491,0.0382857,2654.5,2654.4,13.03038429]
[1727224689642,0.0382857,2654.5,2654.4,11.42263791]
[1727224689842,0.0382857,2654.5,2654.4,12.53236058]
[1727224690029,0.0382857,2654.5,2654.4,11.34724681]
[1727224690365,0.0382857,2654.5,2654.4,11.34724914]
[1727224692042,0.0382857,2655.3,2655.2,3.76619]
[1727224692252,0.0382857,2655.3,2655.2,6.26210414]
[1727224692457,0.0382857,2655.3,2655.2,6.34097712]
[1727224695068,0.0382857,2655.3,2655.2,9.34097712]
[1727224695363,0.0382857,2655.3,2655.2,9.26566991]
[1727224695566,0.0382857,2655.3,2655.2,10.52247072]
[1727224698042,0.0382857,2655.3,2655.2,11.85777072]
[1727224704379,0.0382857,2655.3,2655.2,10.55348627]
[1727224705943,0.0382857,2655.3,2655.2,9.21818627]
[1727224706344,0.0382857,2655.3,2655.2,8.10186379]
[1727224708079,0.0382857,2655.3,2655.2,8.88716379]
[1727224708673,0.0382857,2656.1,2655.2,8.88716379]
[1727224708674,0.0382857,2656.1,2656.0,3.76506]
[1727224708976,0.0382857,2656.1,2656.0,9.25948799]
[1727224709293,0.0382857,2656.1,2656.0,9.25829613]
[1727224711189,0.0382857,2656.1,2656.0,9.80829613]
[1727224711487,0.0382857,2656.1,2656.0,7.38915088]
[1727224711642,0.0382857,2656.1,2656.0,7.4644201]
[1727224713854,0.0382857,2656.1,2656.0,7.38915088]
[1727224714068,0.0382857,2656.1,2656.0,6.83915088]
[1727224714442,0.0382857,2656.1,2656.0,6.91443018]
[1727224715252,0.0382857,2656.1,2656.0,7.46443018]
[1727224716083,0.0382857,2656.1,2656.0,8.21793618]
[1727224716378,0.0382857,2656.1,2656.0,8.14265688]
[1727224721157,0.0382857,2656.1,2656.0,8.92795688]
[1727224724999,0.0382857,2656.1,2656.0,11.34710213]
[1727224731217,0.0382857,2656.1,2656.0,10.01180213]
[1727224731853,0.0382857,2656.1,2656.0,4.59265688]
[1727224731994,0.0382857,2656.1,2656.0,3.83915088]
[1727224733340,0.0382857,2656.1,2656.0,6.83915088]
[1727224733903,0.0382857,2656.1,2656.0,9.25829613]
[1727224735638,0.2795857,2656.1,2656.0,9.25829613]
[1727224735851,0.2795857,2656.1,2656.0,3.83915088]
[1727224736616,0.2795857,2656.1,2656.0,3.91444473]
[1727224737433,0.2795857,2656.1,2656.0,6.33358998]
[1727224737825,0.2795857,2656.1,2656.0,6.25829613]
[1727224738202,0.2795857,2656.1,2656.0,7.33593345]
[1727224738526,0.0382857,2656.1,2656.0,7.33593345]
[1727224739551,0.0382857,2656.1,2656.0,4.9167882]
[1727224739707,0.0382857,2656.1,2656.0,3.91444059]
[1727224741116,0.2795857,2656.1,2656.0,3.83915088]
[1727224746562,0.2795857,2656.1,2656.0,6.25829613]
[1727224746736,0.0382857,2656.1,2656.0,6.33358843]
[1727224746950,0.0382857,2656.1,2656.0,7.34346527]
[1727224747351,0.0382857,2656.1,2656.0,10.34346527]
[1727224747649,0.0382857,2656.1,2656.0,10.26817297]
[1727224750959,0.2795857,2656.1,2656.0,4.84902772]
[1727224751243,0.2795857,2656.1,2656.0,3.83915088]
[1727224759478,0.0382857,2656.1,2656.0,3.83915088]
[1727224759660,0.0382857,2656.1,2656.0,9.97897841]
[1727224759860,0.0382857,2656.1,2656.0,10.87179892]
[1727224760062,0.0382857,2656.1,2656.0,13.56713089]
[1727224760871,0.0382857,2656.1,2656.0,11.9536281]
[1727224761182,0.0382857,2656.1,2656.0,13.5741587]
[1727224761608,0.0382857,2656.1,2656.0,14.3589587]
[1727224762017,0.0382857,2656.1,2656.0,12.7384281]
[1727224762318,0.0382857,2656.1,2656.0,14.35894883]
[1727224762680,0.0382857,2656.1,2656.0,16.59924595]
[1727224762877,0.0382857,2656.1,2656.0,16.59925449]
[1727224763578,0.0382857,2656.1,2656.0,14.18010924]
[1727224763786,0.0382857,2656.1,2656.0,14.57862687]
[1727224764390,0.2795857,2656.9,2656.8,7.54872]
[1727224764391,0.0382857,2656.9,2656.8,7.54872]
[1727224764611,0.0382857,2656.9,2656.8,10.04312287]
[1727224764814,0.0382857,2656.9,2656.8,11.65885097]
[1727224765024,0.0382857,2656.9,2656.8,11.6588743]
[1727224765317,0.0382857,2656.9,2656.8,10.68683295]
[1727224765815,0.0382857,2656.9,2656.8,12.66227946]
[1727224769121,0.0382857,2656.9,2656.8,11.6899039]
[1727224769286,0.0382857,2656.9,2656.8,11.04255001]
[1727224769692,0.0382857,2656.9,2656.8,11.69357821]
[1727224770114,0.0382857,2656.9,2656.8,11.6935782]
[1727224770351,0.0382857,2656.9,2656.8,11.69344477]
[1727224770623,0.0382857,2656.9,2656.8,12.66976856]
[1727224771395,0.0382857,2656.9,2656.8,11.69344477]
[1727224771902,0.0382857,2656.9,2656.8,11.04255001]
[1727224772240,0.0382857,2656.9,2656.8,11.59255001]
[1727224772394,0.0382857,2656.9,2656.8,13.21894246]
[1727224772785,0.0382857,2656.9,2656.8,14.00746918]
[1727224773191,0.0382857,2656.9,2656.8,13.21894246]
[1727224773796,0.0382857,2656.9,2656.8,11.59255001]
[1727224775035,0.0382857,2656.9,2656.8,12.24282075]
[1727224775806,0.0382857,2656.9,2656.8,13.21757388]
[1727224777522,0.0382857,2656.9,2656.8,10.79842863]
[1727224777739,0.0382857,2656.9,2656.8,13.21757388]
[1727224778583,3.7614,2658.6,2656.8,13.21757388]
[1727224778584,0.0382857,2659.3,2658.1,0.7848]
[1727224778864,2.32168953,2658.9,2658.6,3.76137]
[1727224779011,4.58633504,2659.3,2658.6,3.74073761]
[1727224779213,1.3258797,2659.2,2658.7,3.829504]
[1727224779446,0.70054803,2659.2,2658.7,0.068284]
[1727224779648,0.82586504,2659.3,2658.7,0.068284]
[1727224779950,0.82467044,2659.3,2658.7,0.068284]
[1727224780311,0.82467044,2659.3,2658.6,3.74073761]
[1727224780312,0.0370911,2659.3,2658.6,3.74073761]
[1727224781359,0.0370911,2659.3,2658.8,3.76105]
[1727224781757,0.0370911,2659.3,2658.9,0.06809372]
[1727224781948,0.0370911,2659.3,2658.6,3.74073761]
[1727224781949,0.0370911,2659.3,2658.6,3.76137]
[1727224782150,0.0370911,2659.3,2659.2,3.76052]
[1727224782662,0.0370911,2659.3,2659.2,3.82775613]
[1727224783322,0.0370911,2659.3,2659.2,3.90295706]
[1727224783649,0.0370911,2659.3,2659.2,3.82775613]
[1727224791589,0.0370911,2659.3,2659.2,0.06723613]
[1727224791742,0.0370911,2659.3,2659.2,3.82775613]
[1727224792760,0.0370911,2659.3,2659.2,0.06723613]
[1727224793001,4.72720821,2659.3,2659.2,0.06723613]
[1727224793287,3.76057,2659.2,2658.7,3.76109]
[1727224794088,3.76057,2659.2,2658.7,7.52224]
[1727224794696,3.76057,2659.2,2658.7,3.76109]
[1727224794903,0.47273982,2659.1,2658.7,7.52221]
[1727224795048,0.47273982,2659.1,2658.7,3.76109]
[1727224795244,0.47273982,2659.1,2658.7,7.52224]
[1727224796984,0.47273982,2659.1,2658.7,7.52223]
[1727224797289,0.96682821,2659.3,2658.9,3.76095]
[1727224797290,0.42333098,2659.0,2658.9,3.76095]
[1727224797585,0.0370911,2659.3,2659.0,3.76068]
[1727224798749,0.0370911,2659.3,2659.1,3.76064]
[1727224799744,0.0370911,2659.3,2659.2,3.76052]
[1727224801208,0.0370911,2659.3,2659.2,4.60097715]
[1727224801711,0.0370911,2659.3,2659.2,4.66568027]
[1727224811289,0.0370911,2659.3,2659.2,3.82522312]
[1727224813034,0.0370911,2659.3,2659.2,3.8170048]
[1727224815105,0.0370911,2659.3,2659.2,4.5233048]
[1727224815591,0.0370911,2659.3,2659.2,6.7670048]
[1727224819611,0.0370911,2659.3,2659.2,3.7670048]
[1727224820112,0.0370911,2659.3,2659.2,3.7554238]
[1727224820902,0.0370911,2659.3,2659.2,0.06470312]
[1727224821129,0.28204138,2659.3,2659.2,0.06470312]
[1727224822235,0.28204138,2659.3,2659.0,3.76072]
[1727224822601,0.28204138,2659.3,2659.2,0.0580554]
[1727224823039,0.0370911,2659.3,2659.2,3.8185754]
[1727224824619,0.0370911,2659.3,2659.2,6.89377335]
[1727224831958,0.0370911,2659.3,2659.2,7.6079754]
[1727224832149,0.0370911,2659.3,2659.2,7.64660962]
[1727224832344,0.0370911,2659.3,2659.2,9.02856975]
[1727224833723,0.0370911,2659.3,2659.2,11.26077987]
[1727224834062,0.0370911,2659.3,2659.2,13.67319157]
[1727224836621,0.0370911,2659.3,2659.2,14.45800029]
[1727224836827,0.0396909,2660.1,2660.0,3.75939]
[1727224837081,0.0896909,2660.1,2660.0,12.37268396]
[1727224837286,0.0896909,2660.1,2660.0,14.09218246]
[1727224837475,0.0396909,2660.9,2660.0,14.09218246]
[1727224837476,0.0396909,2660.9,2660.8,6.75826]
[1727224837968,0.0396909,2660.9,2660.8,6.85304871]
[1727224838557,0.0396909,2660.9,2660.8,3.85304871]
[1727224841261,0.0896,2661.0,2660.8,3.85304871]
[1727224841470,0.1086185,2661.0,2660.8,3.85296871]
[1727224841674,0.1086185,2661.0,2660.9,3.75812]
[1727224841998,0.1086185,2661.0,2660.9,3.85281227]
[1727224842402,0.0896,2661.0,2660.9,3.85281227]
[1727224842576,0.0896,2661.0,2660.9,0.09469227]
[1727224843073,0.0896,2661.0,2660.9,0.09442407]
[1727224843273,0.0896,2661.0,2660.6,3.75849]
[1727224843473,0.0896,2661.0,2660.9,0.09442407]
[1727224843776,0.0896,2661.0,2660.6,3.75849]
[1727224844283,0.0896,2661.0,2660.7,0.09461696]
[1727224846193,0.0896,2660.9,2660.7,0.09461696]
[1727224846511,0.1086185,2660.9,2660.7,0.09461696]
[1727224848075,0.1086185,2660.9,2660.5,3.75858]
[1727224848275,3.8668185,2660.9,2660.8,0.09417331]
[1727224848478,4.87778519,2660.9,2660.3,3.75886]
[1727224848669,3.84804,2660.7,2660.2,3.75908]
[1727224848864,3.84804,2660.7,2660.0,3.75938]
[1727224848865,0.0896,2660.6,2660.0,3.75938]
[1727224849204,0.0896,2660.6,2659.6,3.75988]
[1727224849205,0.0896,2660.1,2659.6,3.75988]
[1727224849405,2.7548792,2660.0,2659.6,3.75988]
[1727224849699,0.0896,2660.1,2659.6,3.75988]
[1727224850063,0.0896,2660.1,2659.8,3.75965]
[1727224851270,0.0896,2660.1,2659.9,3.75951]
[1727224852120,0.0896,2660.1,2659.8,3.75965]
[1727224854791,0.0896,2660.1,2659.2,4.38196013]
[1727224855004,0.66036792,2660.1,2659.2,1.38196013]
[1727224855293,0.0896,2659.9,2659.7,3.7598]
[1727224855907,0.0896,2659.9,2659.6,3.75996]
[1727224856338,4.59495465,2660.1,2659.6,3.75996]
[1727224856733,0.89663473,2660.1,2659.6,7.51992]
[1727224857230,0.89663473,2660.1,2659.6,3.75996]
[1727224857436,3.75913,2660.2,2659.7,3.75981]
[1727224857744,3.75903,2660.3,2659.8,3.75963]
[1727224857942,4.6093184,2660.3,2659.8,3.75963]
[1727224858750,4.54648934,2660.4,2659.8,3.7596]
[1727224858946,0.0190185,2660.5,2660.2,3.7591]
[1727224859148,0.0190185,2660.5,2660.3,3.75894]
[1727224859337,0.0190185,2660.5,2660.3,7.51788]
[1727224859536,0.0190185,2660.5,2660.3,3.75894]
[1727224859714,0.0190185,2660.5,2660.3,7.51782]
[1727224859915,0.0190185,2660.5,2660.3,3.75888]
[1727224860450,0.0190185,2660.5,2660.3,7.51777]
[1727224860640,0.0190185,2660.5,2660.4,3.75883]
[1727224861552,0.0190185,2660.5,2660.4,4.510601]
[1727224861708,0.0190185,2660.5,2660.4,5.4160925]
[1727224864542,0.0190185,2660.5,2660.4,4.6055925]
[1727224865336,0.0190185,2660.5,2660.4,8.49126063]
[1727224865662,0.0190185,2660.5,2660.4,8.9660925]
[1727224865958,0.0190185,2660.5,2660.4,8.4160925]
[1727224872129,0.0190185,2660.5,2660.4,8.9660925]
[1727224872953,0.0190185,2660.5,2660.4,9.63543503]
[1727224873334,0.0190185,2660.5,2660.4,8.9660925]
[1727224874660,0.0190185,2660.5,2660.4,8.4160925]
[1727224875942,0.0190185,2660.5,2660.4,4.6055925]
[1727224876160,0.0190185,2660.5,2660.4,3.8538215]
[1727224877163,0.0190185,2660.5,2660.4,6.8538215]
[1727224880487,0.0190185,2660.5,2660.4,3.83611602]
[1727224881673,0.0190185,2660.5,2660.4,0.0949915]
[1727224882893,0.0190185,2660.5,2660.2,3.75906]
[1727224883123,0.0190185,2660.5,2660.4,0.09461912]
[1727224883279,0.0190185,2660.5,2660.3,0.0947156]
[1727224883481,0.0190185,2660.5,2660.4,0.09461912]
[1727224883893,0.0190185,2660.5,2660.1,3.75917]
[1727224884226,0.0190185,2660.5,2660.4,0.09491571]
[1727224884517,0.7510242,2660.5,2660.4,0.09491571]
[1727224884713,0.7510242,2660.5,2660.0,3.7593]
[1727224884885,0.0190185,2660.5,2660.4,0.09491571]
[1727224885094,3.7777085,2660.5,2660.0,3.7593]
[1727224885285,3.7777085,2660.5,2660.4,0.09491571]
[1727224885486,5.63245122,2660.5,2660.0,3.7593]
[1727224885697,5.0038159,2660.5,2660.4,0.09491571]
[1727224885902,5.63244542,2660.5,2660.0,3.7593]
[1727224886139,0.57913952,2660.4,2660.0,3.7593]
[1727224886520,0.57913952,2660.4,2660.0,7.51862]
[1727224886846,1.2451259,2660.5,2660.1,3.7592]
[1727224891632,1.2451259,2660.5,2660.2,3.85419868]
[1727224891946,0.0190185,2660.5,2660.2,3.85419868]
[1727224892154,0.0190185,2660.5,2660.3,3.75896]
[1727224892512,0.0190185,2660.5,2660.4,0.09491571]
[1727224893656,0.0190185,2660.5,2660.1,3.75924]
[1727224893885,0.39677835,2660.5,2660.1,3.75924]
[1727224894154,0.39677835,2660.5,2660.2,0.09510868]
[1727224894973,4.15548835,2660.5,2660.2,0.09510868]
[1727224895188,4.15548835,2660.5,2660.0,3.75926]
[1727224895407,4.15548835,2660.5,2660.3,0.09522052]
[1727224895686,0.49430677,2660.4,2660.0,3.75926]
[1727224895986,0.49430677,2660.4,2660.0,7.51857]
[1727224896291,0.39677835,2660.5,2660.2,3.75909]
[1727224896659,0.39677835,2660.5,2660.2,7.51812]
[1727224897055,0.39677835,2660.5,2660.3,3.75896]
[1727224897464,0.0190185,2660.5,2660.3,3.75896]
[1727224899683,0.0190185,2660.5,2660.3,3.73943985]
[1727224902916,3.7777685,2660.5,2660.0,3.75931]
[1727224903124,3.7777685,2660.5,2659.7,0.7807]
[1727224903125,0.37777685,2660.4,2659.7,0.7807]
[1727224903269,0.37777685,2660.4,2660.0,3.75937]
[1727224903905,4.13660685,2660.4,2660.0,3.75937]
[1727224904075,0.37777685,2660.4,2660.0,3.75937]
[1727224904400,0.49431247,2660.3,2660.0,3.75937]
[1727224905787,0.49431247,2660.3,2660.0,7.51863]
[1727224906805,0.49431247,2660.3,2660.1,0.0955303]
[1727224908608,0.37777685,2660.4,2660.1,0.0955303]
[1727224912121,0.37777685,2660.4,2660.1,3.8547703]
[1727224912352,0.0190185,2660.5,2660.1,3.8547703]
[1727224912554,2.38226401,2660.5,2660.1,3.8547703]
[1727224912710,0.0190185,2660.5,2660.1,3.8547703]
[1727224912911,2.3822742,2660.5,2660.1,3.8547703]
[1727224913234,3.7777285,2660.5,2660.1,0.0955303]
[1727224913439,0.45653078,2660.4,2660.1,0.0955303]
[1727224913742,5.49160698,2660.2,2660.1,0.0955303]
[1727224913942,7.06769925,2660.2,2660.1,0.0955303]
[1727224914143,7.06769925,2660.2,2659.5,3.76002]
[1727224914144,3.75931,2660.1,2659.5,3.76002]
[1727224914460,6.36716444,2660.0,2659.5,3.76002]
[1727224914628,0.63043691,2659.9,2659.5,3.76002]
[1727224915017,4.79107217,2660.0,2659.5,3.76002]
[1727224915217,0.63043533,2659.9,2659.5,3.76002]
[1727224915616,4.79107217,2660.0,2659.5,3.76002]
[1727224915849,1.60350607,2659.9,2659.4,3.76017]
[1727224916075,1.76011896,2659.9,2659.4,3.76017]
[1727224916253,1.76011896,2659.9,2659.4,7.52034]
[1727224916420,0.95236444,2659.8,2659.4,3.76017]
[1727224918472,1.90979454,2659.6,2659.1,3.76067]
[1727224918629,1.90979454,2659.6,2659.2,3.76052]
[1727224918955,0.78702673,2660.0,2659.6,3.75984]
[1727224919151,0.78702673,2660.1,2659.7,3.75974]
[1727224919459,0.78702673,2660.0,2659.7,3.75974]
[1727224919674,2.36345605,2660.0,2659.7,3.75974]
[1727224919816,1.51734534,2660.0,2659.7,3.75974]
[1727224920553,2.36414081,2659.9,2659.6,3.75984]
[1727224921344,1.51734534,2660.0,2659.6,3.75984]
[1727224921552,2.36451013,2659.9,2659.6,3.75984]
[1727224921719,2.36451013,2659.9,2659.7,3.75974]
[1727224921918,3.54504869,2660.1,2659.7,3.75974]
[1727224922144,1.57741451,2660.0,2659.8,0.09298285]
[1727224922339,2.36444124,2660.0,2659.7,3.75974]
[1727224922550,0.78702673,2660.0,2659.9,0.09288634]
[1727224922857,0.78702673,2660.0,2659.7,3.75974]
[1727224922858,1.1382169,2660.0,2659.7,3.75974]
[1727224923023,0.78702673,2660.1,2659.7,3.75974]
[1727224923222,0.78702673,2660.1,2659.8,0.09298285]
[1727224923223,0.78702673,2660.0,2659.8,0.09298285]
[1727224923426,1.41809122,2660.0,2659.8,0.09298285]
[1727224923637,2.52445203,2660.0,2659.6,8.31301]
[1727224923838,0.63106449,2659.9,2659.6,8.31301]
[1727224924051,0.78702673,2660.0,2659.7,3.75981]
[1727224924254,0.78702673,2660.0,2659.8,3.75966]
[1727224924440,0.78702673,2660.1,2659.8,3.75966]
[1727224924758,2.36516063,2660.0,2659.8,3.75966]
[1727224924964,1.96756682,2660.2,2659.6,0.7933]
[1727224925167,0.78702673,2660.4,2660.1,4.55245]
[1727224925463,1.41818803,2660.3,2660.1,4.55245]
[1727224925758,0.78702673,2660.3,2660.1,4.55245]
[1727224925969,2.3662106,2660.4,2660.1,4.55245]
[1727224926127,2.3661746,2660.3,2660.1,4.55245]
[1727224926328,0.63177884,2660.2,2660.1,4.55245]
[1727224926562,1.41880511,2660.3,2660.1,3.75915]
[1727224927027,2.36647635,2660.3,2660.1,3.75915]
[1727224927233,2.87719822,2660.3,2660.1,3.75915]
[1727224927438,2.36676279,2660.2,2659.9,3.75946]
[1727224927768,1.57978067,2660.1,2659.9,3.75946]
[1727224927977,0.78702673,2660.1,2659.9,3.75946]
[1727224928547,1.41899415,2660.1,2659.9,3.75946]
[1727224928871,0.63198165,2660.0,2659.9,3.75945]
[1727224929661,1.41900838,2660.0,2659.9,3.75945]
[1727224929829,2.36701757,2660.0,2659.7,8.31279]
[1727224930167,1.31924538,2660.1,2659.9,3.75953]
[1727224930353,0.63199197,2660.0,2659.9,3.75953]
[1727224930561,0.63200326,2660.0,2659.9,3.75953]
[1727224931108,0.78702673,2660.2,2660.0,3.75939]
[1727224931289,1.73616638,2660.2,2660.0,3.75939]
[1727224931433,0.6327668,2660.1,2660.0,3.75939]
[1727224931636,2.36897274,2660.1,2660.0,3.75939]
[1727224932056,1.58194601,2660.1,2660.0,3.75939]
[1727224932266,1.58194601,2660.1,2659.7,4.55301]
[1727224932267,1.93689729,2660.1,2659.8,3.75961]
[1727224932472,2.37041905,2660.0,2659.8,3.75961]
[1727224932787,0.6327668,2659.9,2659.8,3.75961]
[1727224933074,0.94921362,2659.9,2659.8,3.75961]
[1727224933247,0.61032184,2660.0,2659.8,3.75961]
[1727224933434,1.35848043,2660.0,2659.8,3.75961]
[1727224933633,0.94574067,2659.9,2659.8,3.74507027]
[1727224934041,1.35848043,2660.0,2659.8,3.74507027]
[1727224934342,0.9457372,2659.9,2659.8,3.74507027]
[1727224935183,0.94572297,2659.9,2659.8,3.74507027]
[1727224935393,0.94569924,2659.9,2659.8,3.74507027]
[1727224935894,1.53549137,2660.1,2659.8,3.74507027]
[1727224936060,0.94573187,2660.0,2659.8,3.74507027]
[1727224936269,1.18054009,2660.1,2659.8,3.74507027]
[1727224936561,0.94574244,2660.0,2659.9,0.09275687]
[1727224936962,0.94574244,2660.0,2659.7,3.75981]
[1727224937163,2.12628253,2660.0,2659.9,0.09275687]
[1727224937465,0.94574244,2660.0,2659.7,3.75981]
[1727224937773,1.38119868,2660.0,2659.8,0.09285339]
[1727224937945,0.94574244,2659.9,2659.7,7.51962]
[1727224938385,1.83215736,2660.1,2659.7,7.51962]
[1727224938684,0.94577462,2660.0,2659.7,3.75981]
[1727224938855,0.94577462,2659.9,2659.7,7.51955]
[1727224939064,1.18054009,2660.0,2659.7,3.75974]
[1727224939249,0.94578809,2659.9,2659.7,3.75974]
[1727224939450,1.18054009,2660.0,2659.7,7.51949]
[1727224939963,2.12633458,2660.0,2659.7,7.51949]
[1727224940159,2.12633458,2660.0,2659.5,1.18661671]
[1727224940357,0.94579449,2659.9,2659.3,0.7944]
[1727224940558,0.94579449,2659.8,2659.4,3.76011]
[1727224940885,3.75969,2659.8,2659.4,3.73451756]
[1727224941090,1.81576232,2659.7,2659.4,3.73451756]
[1727224941249,0.86997901,2659.7,2659.4,3.73451756]
[1727224941452,1.18054009,2659.8,2659.4,3.73451756]
[1727224944199,0.78843573,2659.7,2659.4,3.73451756]
[1727224944807,0.78843573,2659.7,2659.4,7.49468756]
[1727224945167,0.78843573,2659.7,2659.4,3.73451756]
[1727224946595,4.54826573,2659.7,2659.1,4.55497]
[1727224946768,4.74516331,2659.7,2659.2,3.7604]
[1727224947082,4.74516331,2659.7,2659.2,7.52084]
[1727224947604,4.54826573,2659.7,2659.2,7.52084]